[Event "Turkish Youth Teams U18 2024"]
[Site "Karaman"]
[Date "2024.04.23"]
[Round "6"]
[White "Arslan, Muhammed Emin"]
[Black "Demirtas, Alper"]
[Result "0-1"]
[ECO "D37"]
[WhiteElo "2251"]
[BlackElo "2020"]
[Annotator "TA"]
[PlyCount "140"]
[EventDate "2024.04.21"]
[EventType "team-tourn"]
[EventCountry "TUR"]
[SourceTitle "playchess.com"]
[Source "ChessBase"]
[SourceQuality "1"]
[TimeControl "5400+30"]

{[%evp 12,140,22,16,25,14,23,24,34,27,37,38,31,32,49,41,63,0,0,0,0,0,0,4,0,0,0,2,3,-30,-43,-93,-27,-51,-13,-45,-43,-46,-35,-29,-28,-48,-35,-41,-26,-21,-15,-17,0,0,0,-54,-12,-5,-8,-39,-39,-41,-38,-33,-38,-54,-6,-7,-9,-66,-8,-65,-57,-62,-58,-106,-108,-106,-73,-111,-71,-72,-70,-144,-133,-141,-141,-277,-281,-266,-267,-198,-198,-868,-876,-928,-903,-867,-866,-796,-530,-1284,-1251,-5297,-4036,-29964,-29965,-29968,-29961,-29973,-29974,-29975,-29976,-29977,-29978,-29982,-29977,-29977,-29978,-29979,-29980,-29980,-29981,-29981,-29982,-29982,-29983,-29985,-29986,-29986,-29984,-29987,-29988,-29988,-29989]} 1. c4 e6 2. Nc3 d5 3. d4 Nf6 4. Nf3 Be7 5. Bf4 b6 {[%cal Bb7b6,Bb6b5][%mdl 32]} 6. e3 O-O 7. Be2 dxc4 8. Bxc4 a6 9. O-O b5 {White has an edge.} 10. Bd3 Bb7 11. Qe2 Nbd7 12. Rfd1 c5 13. dxc5 Bxc5 14. h3 ({Better is} 14. Ne5 $14) 14... Qb6 $11 15. e4 Rfd8 16. a3 Rac8 17. Rac1 Qa7 18. e5 Nd5 19. Nxd5 Bxd5 20. Qc2 Nf8 21. Bg5 (21. Qe2 $1 $15) 21... Re8 (21... Bxa3 $1 $17 22. Qxc8 Rxc8 23. Rxc8 Bxb2) 22. Qd2 Ng6 23. Re1 Qb7 24. Qe2 Nf8 25. Be3 Be7 26. Bd4 Red8 27. Qe3 Rxc1 28. Rxc1 Bxf3 29. gxf3 Qd5 (29... Qd7 $5 30. Rd1 $8 Ng6 $11 (30... Qxd4 $2 31. Bxh7+ Kxh7 32. Rxd4 $18)) 30. Rd1 $1 {[#] Bb6 would now be deadly.} Ng6 (30... Qxd4 $2 31. Bxh7+ Kxh7 32. Rxd4 $18) 31. Bc2 (31. Bb6 $11 Rb8 32. f4) 31... Nh4 32. Be4 Qd7 $36 {[%mdl 2048] White must now prevent ...Bc5. Black has some pressure.} 33. Rd2 {[#]} Bc5 $1 {[%cal Rc5d4]} 34. Qf4 {[%cal Od4e3] Be3! is the strong threat.} (34. Qg5 Nxf3+) 34... Nxf3+ 35. Bxf3 Bxd4 36. Kg2 f6 (36... Qa7 $15 {should be considered.}) 37. exf6 gxf6 38. h4 ({White should play} 38. b4 $11) 38... Qg7+ (38... a5 $15) 39. Kh1 (39. Kh3 $11 Qd7 40. Bd1) 39... e5 $15 40. Qf5 Qh6 {[%csl LRd2,LRh4] aiming for ...e4.} 41. Qg4+ (41. Bb7 $15) 41... Kh8 $17 42. Rc2 Qg6 {Prevents Be4} 43. Rc8 Rxc8 (43... Qxg4 {simplifies} 44. Bxg4 Rxc8 45. Bxc8 a5) 44. Qxc8+ {[%mdl 4096] Endgame. KQB-KQB} Kg7 45. Qc7+ (45. Qd7+ $15 Qf7 46. Qf5) 45... Qf7 46. Qc2 Qc4 47. Qd2 (47. Qf5 $17) 47... Qf1+ $19 48. Kh2 Qxf2+ 49. Qxf2 Bxf2 {KB-KB} 50. h5 $2 (50. Bb7) 50... f5 51. Bd5 Kh6 52. Be6 Kg5 ({Weaker is} 52... Kxh5 53. Bxf5 Bd4 54. b3 $17) 53. Kg2 Bc5 54. b4 Bd4 55. Bc8 Bb2 (55... Kxh5 56. Bxf5 Bb2 57. Bc8 $17) 56. Bxa6 Bxa3 {Black mates.} 57. Bxb5 Bxb4 58. Bd7 e4 ({Stronger than} 58... Kxh5 59. Bxf5 Kh6 60. Bc8 $11) 59. Kf2 h6 ({Not} 59... Kxh5 60. Bxf5 Bc5+ 61. Kf1 $11) 60. Be8 Bc5+ 61. Kg2 Kf4 62. Bd7 Ke5 63. Bc8 f4 64. Bg4 Kd4 65. Bd7 Ke3 66. Bb5 f3+ 67. Kf1 Kf4 68. Bc4 e3 69. Bb5 Bb4 70. Bc4 Ke5 {Weighted Error Value: White=0.53/Black=0.17 (very precise) .  Mistake:       	White=9     	Black=3      Inaccurate:     	White=5     	Black=4      OK:         	White=11    	Black=17     Best:        	White=2     	Black=4      Strong:       	White=1     	---} 0-1

[Event "Turkish Youth Teams U18 2024"]
[Site "Karaman"]
[Date "2024.04.23"]
[Round "6"]
[White "Engin, Onur Cinar"]
[Black "Ince, Taylan Ruzgar"]
[Result "1/2-1/2"]
[ECO "B22"]
[WhiteElo "2101"]
[BlackElo "2258"]
[Annotator "TA"]
[PlyCount "144"]
[EventDate "2024.04.21"]
[EventType "team-tourn"]
[EventCountry "TUR"]
[SourceTitle "playchess.com"]
[Source "ChessBase"]
[SourceQuality "1"]
[TimeControl "5400+30"]

{[%evp 16,144,24,0,0,0,34,32,37,35,45,56,42,40,34,60,41,0,0,0,40,12,94,97,142,134,138,127,154,127,115,79,96,67,79,75,84,91,98,70,85,93,84,87,98,79,81,82,106,95,129,95,125,123,142,138,154,169,165,135,162,75,132,0,174,173,168,174,196,203,192,191,295,222,248,243,235,181,179,140,137,132,134,0,0,0,148,145,143,121,117,102,86,66,63,52,69,29,47,0,71,32,46,46,54,42,48,29,40,20,20,20,20,20,20,20,20,20,68,67,64,8,8,0,0,0,0,0,0,0,0]} 1. e4 c5 2. c3 d5 3. exd5 Qxd5 4. d4 Nf6 5. Nf3 Nc6 6. dxc5 Qxd1+ 7. Kxd1 Bf5 8. Be3 O-O-O+ 9. Nbd2 Nd5 10. Rc1 g6 11. Bb5 e5 {White is slightly better.} 12. Bxc6 bxc6 13. Nxe5 Nxe3+ 14. fxe3 {[%cal Bf2e3,Be3e4][%mdl 32]} Bxc5 15. Re1 (15. Nxc6 Bxe3 (15... Rd3 16. Nd4 $16) 16. Nd4 (16. Nxd8 $2 Rxd8 17. Ke2 Bxd2 $19) 16... Kc7 $15) 15... Rde8 16. Ndc4 (16. Nxf7 Rhf8 17. b4 Bg4+ 18. Nf3 (18. Kc2 $2 Rxf7 19. bxc5 Rf2 $19) 18... Bxf3+ (18... Bxe3 $2 19. Nd6+ Kc7 20. Nxe8+ Rxe8 21. Ra1 $18) 19. gxf3 Rxf7 (19... Bxe3 $2 20. Nd6+ Kd7 21. Nxe8 $18) 20. bxc5 Rxf3 $15) 16... Rd8+ 17. Nd2 {Excellent horsemanship.} Rde8 $1 18. Ndf3 {[%cal Oe3e4] White wants to play e4!} (18. Nxf7 Rhf8 19. b4 Rxf7 20. bxc5 Bg4+ 21. Nf3 (21. Kc2 Rf2 $17) 21... Bxf3+ 22. gxf3 Rxf3 $15) 18... f6 (18... Be4 $1 $11 {remains equal.}) 19. e4 $1 $16 (19. Nxc6 Bxe3 20. Ra1 Be4 21. Rxe3 Bxc6 $16) 19... Be6 (19... Bf2 $2 20. exf5 (20. Nxc6 Bxe1 21. Nxa7+ Kb7 $11) (20. Re2 Bxe4 21. Rxe4 fxe5 $18) 20... Bxe1 21. Nd3 $18 (21. Nxc6 Bf2 $11)) 20. Nxc6 Bxa2 21. Kc2 Bf7 22. Ncd4 Re7 23. e5 fxe5 24. Nc6 Rc7 25. Ncxe5 {White is more active.} (25. Nfxe5 Bd5 26. Na5 Bxg2 $11) 25... Bd5 26. Rcd1 Bb7 27. Nd3 $36 {[%mdl 2048] White fights for an advantage.} Bd6 28. Re6 Rd8 29. Nde5 Bxe5 30. Rxd8+ (30. Nxe5 Bd5 31. Rxd5 Rxd5 $17) 30... Kxd8 31. Rxe5 {[%mdl 4096] Endgame. KRB-KRN} Rf7 32. Re3 h6 33. Kd2 g5 34. Ne5 Rf6 35. g3 Kc7 36. b4 Ra6 37. Kd3 Rd6+ 38. Ke2 (38. Kc2 $18 {and White stays clearly on top.}) 38... Ra6 (38... a5 $142) 39. Kd3 Rd6+ $1 40. Kc2 Rf6 41. Re2 {Against Rf2} Re6 42. c4 h5 43. Kc3 Rf6 (43... h4 {was necessary.} 44. gxh4 gxh4) 44. Kd4 Rd6+ 45. Kc5 Rf6 46. Rd2 Bc8 47. b5 {Threatens to win with Nc6.} Rf5 48. Kd5 {Ra2 is the strong threat.} Bb7+ 49. Ke6 Bc8+ 50. Kd5 Bb7+ $1 51. Kd4 {And now Ra2 would win.} a6 52. bxa6 Bxa6 53. Ke4 Bc8 54. c5 Rf1 55. Kd5 Rf6 56. Rb2 {[%cal Ob2b6]} Rf1 57. Rd2 Rf6 58. Rc2 Be6+ 59. Kd4 Rf1 60. Rd2 h4 61. gxh4 Rf4+ 62. Kc3 {[#] Rd6 would now be deadly.} Rxh4 63. Rd6 Bc8 64. Rc6+ Kb7 65. Rb6+ Kc7 66. Rg6 Rxh2 (66... Bb7 $11) 67. Rg7+ $14 ({Of course not} 67. Rxg5 Rh7 $11) 67... Kd8 68. c6 ({Much weaker is} 68. Rxg5 Bb7 $11) ({White should play} 68. Nc6+ $14 Ke8 69. Rg8+ (69. Rxg5 Bb7 $14) 69... Kd7 70. Ne5+ Ke6 71. Rxg5) 68... Be6 $11 {The position is equal.} 69. c7+ Kc8 70. Re7 Bf5 71. Rf7 Rc2+ 72. Kd4 Bh3 {Weighted Error Value: White=0.21 (precise) /Black=0.11 (very precise) .  Mistake:       	White=2     	Black=4      Inaccurate:     	White=5     	Black=4      OK:         	White=21    	Black=22     Best:        	White=6     	Black=7      Strong:       	White=1     	Black=3} 1/2-1/2

[Event "Turkish Youth Teams U18 2024"]
[Site "Karaman"]
[Date "2024.04.23"]
[Round "6"]
[White "Yalcinkaya, Efe"]
[Black "Oktem, Ege Tuna"]
[Result "1/2-1/2"]
[ECO "C06"]
[WhiteElo "2033"]
[BlackElo "2076"]
[Annotator "TA"]
[PlyCount "134"]
[EventDate "2024.04.21"]
[EventType "team-tourn"]
[EventCountry "TUR"]
[SourceTitle "playchess.com"]
[Source "ChessBase"]
[SourceQuality "1"]
[TimeControl "5400+30"]

{[%evp 43,134,-125,-90,-94,-93,-110,-91,-103,-103,-123,-29,-49,-55,-52,1,1,0,0,0,0,133,137,147,4,3,-73,0,0,316,49,47,50,41,37,50,59,50,48,48,0,39,24,25,18,19,17,18,15,18,15,18,18,22,18,21,18,34,0,22,22,23,25,27,12,28,21,27,18,26,20,28,8,38,0,0,0,0,0,0,0,0,0,0,0,0,0,76,0,0,0,0,0,0]} 1. e4 e6 2. d4 d5 3. Nd2 Be7 4. Ngf3 Nf6 5. e5 Nfd7 6. Bd3 c5 7. c3 Nc6 8. O-O a5 9. dxc5 {9.a4 is a critical line. C06: French Tarrasch: 3...Nf6 4 e5 Nfd7 5 Bd3 main lines.} Ndxe5 10. Bb5 $146 ({Predecessor:} 10. Nxe5 Nxe5 11. Bb5+ Bd7 12. Bxd7+ Qxd7 13. b4 axb4 14. cxb4 Qa4 15. Qe2 Nc6 16. Bb2 Qxb4 17. Bxg7 {1-0 Martinez Alcantara,J (2615)-Ramirez Alvarez,A (2573) Titled Tuesday intern op 01st Feb-B blitz 2022 (3)}) 10... Bd7 11. Nb3 a4 12. Nbd4 Bxc5 13. Bf4 Nxd4 14. Bxd7+ Nxd7 15. cxd4 Be7 16. Rc1 O-O 17. Bc7 Qe8 18. Qe2 Nb8 19. Ne5 Na6 20. Bb6 Bd6 21. Rc3 Qe7 22. Qb5 a3 23. bxa3 Bxa3 24. Ba5 Bb4 25. Bxb4 Nxb4 26. a4 Rfc8 (26... Nc6 $1 $17 {[%cal Rc6d4]} 27. Nxc6 bxc6 28. Rxc6 Qa7) 27. Rfc1 $11 Rxc3 28. Rxc3 f6 (28... h6 $15) 29. Nd7 $11 Nc6 $1 30. Qxb7 Rxa4 31. h3 Nd8 (31... Nxd4 $2 32. Rc8+ (32. Nxf6+ Kf7 $18) 32... Kf7 33. Rc7 $18) (31... Ra1+ $11 32. Kh2 Ra7 (32... Nxd4 $2 33. Rc8+ Kf7 34. Rc7 $18) 33. Nxf6+ Qxf6 34. Qxc6 h6) 32. Rc8 $16 Kf7 (32... Rxd4 $2 33. Ne5 Qf8 (33... Qxb7 34. Rxd8#) 34. Qd7 fxe5 35. Rxd8 $18) 33. Qb8 (33. Qc7 Ke8 34. Nc5 Qxc7 (34... Rxd4 $2 35. Qb6 $18) 35. Rxc7 Rxd4 36. Rxg7 Rd1+ 37. Kh2 d4 $11) ({White must play} 33. Qb6 $1 $16 Rb4 (33... Qxd7 $2 34. Rc7 $18) 34. Qxd8 Qxd8 35. Rxd8) 33... Rb4 $1 $11 34. Nb6 {[#]} (34. Qg3 $11 {remains equal.}) 34... Rb1+ (34... Ke8 $1 $17) 35. Kh2 $11 Qb4 $2 {[%mdl 8192]} (35... Ke8 $1 $11 {and Black has nothing to worry.}) 36. Qc7+ $2 (36. Rxd8 $18 {White wants to mate with Rd7+.} Qxd4 37. Rd7+ Kg6 38. Qg3+ Kf5 39. Nc8) 36... Qe7 $14 37. Qg3 $1 (37. Qxd8 $2 Qxd8 38. Rxd8 Rxb6 39. Rd7+ Kf8 $17) 37... Rxb6 38. Rc7 Rb7 $1 39. Rxe7+ Rxe7 40. Qb8 Rd7 (40... Nc6 $6 41. Qb6 Na7 42. Qc5 $16) 41. Kg3 (41. f4 $14) 41... Ke7 42. Kf4 Nc6 43. Qg8 Kd6 44. Ke3 (44. Qxh7 $2 {loses.} g5+ (44... Nxd4 45. Ke3 $11) 45. Ke3 Rxh7 $19) 44... h6 45. f4 Ra7 46. Qf8+ Re7 $1 47. h4 Kd7 48. Qa8 Kd6 49. Qa3+ Kd7 50. Qa8 Kd6 51. Kd3 Ra7 52. Qf8+ Re7 53. h5 Kd7 54. Qa8 Kd6 55. Qa3+ Kd7 56. Qc5 f5 57. Kc3 Re8 58. Kd3 Rb8 59. Ke3 Rb3+ 60. Kf2 Rb8 61. Kg3 Rc8 62. Qb6 Rb8 63. Qc5 Rc8 64. Kh4 Ke8 {[#]} (64... Ne7 $11 65. Qb5+ Rc6) 65. g4 ({White should play} 65. Qd6 $1 $16) 65... fxg4 $11 66. f5 (66. Kxg4 $2 {too greedy.} Ne5+ 67. Kg3 Rxc5 $19) 66... Ne7 67. Qb5+ Kf7 1/2-1/2

[Event "Turkish Youth Teams U18 2024"]
[Site "Karaman"]
[Date "2024.04.23"]
[Round "6"]
[White "Yildiz, Serdar Murat"]
[Black "Camlar, Arda"]
[Result "0-1"]
[ECO "B40"]
[WhiteElo "2021"]
[BlackElo "2389"]
[Annotator "TA"]
[PlyCount "108"]
[EventDate "2024.04.21"]
[EventType "team-tourn"]
[EventCountry "TUR"]
[SourceTitle "playchess.com"]
[Source "ChessBase"]
[SourceQuality "1"]
[TimeControl "5400+30"]

{[%evp 12,108,0,0,0,-2,-4,8,9,-1,-2,0,-3,0,0,0,-3,-16,-16,-15,-10,-8,-6,-15,-19,-7,0,-13,-16,-13,-11,-35,-13,-36,0,0,0,0,0,0,0,0,0,0,8,0,0,0,4,-50,-50,-44,-32,-59,-51,-95,-47,-68,0,-68,-70,-100,-81,-174,-170,-164,-173,-167,-82,-167,-160,-173,-158,-146,-143,-234,-227,-216,-180,-195,-87,-103,-94,-82,-58,-84,-26,-35,-23,-284,-272,-268,-266,-841,-831,-818,-804,-1477,-1560]} 1. e4 c5 2. Nf3 e6 3. d4 cxd4 4. Nxd4 Bc5 5. Nc3 Qb6 6. Be3 Nc6 7. Na4 Qa5+ 8. c3 Bxd4 9. Bxd4 Nxd4 {The position is equal.} 10. Qxd4 e5 11. Qb4 Qxb4 12. cxb4 Nf6 13. Nc3 d6 14. O-O-O Ke7 15. Bc4 Be6 16. Bxe6 fxe6 17. f3 g5 18. Rd3 Rhd8 19. Rhd1 Rd7 20. a3 h5 21. Kc2 Rad8 22. Re3 Kf7 23. Kb3 Kg6 24. a4 h4 25. a5 g4 26. Rf1 gxf3 27. Rexf3 Nh5 28. Na4 Nf4 29. R1f2 {Prevents Ne2} Kh5 30. g3 (30. Re3 $11) 30... Nh3 $15 31. Rf1 Ng5 {[%csl LRe4,LRf3]} 32. Re3 h3 33. Nc3 Kg4 (33... Rf7 $17 34. Rxf7 Nxf7) 34. Nd1 Kh5 (34... Rh7 $15) 35. Rf6 (35. Nc3 $11) 35... Rh8 36. Nf2 Rhh7 37. Kc2 (37. Kc4 $17) 37... Rdf7 $19 38. Rxf7 Rxf7 {[%mdl 4096] Endgame. KRN-KRN} 39. Re2 Kg6 (39... Nf3 $1 $19 {[%cal Rf3d4] is more deadly. And now ...Nd4+ would win.} 40. Kb1 Nxh2 41. Nxh3 Nf1) 40. b5 {[#]} (40. Kd1 $17 {is a better defense.}) 40... Nf3 $1 41. Kc3 Rh7 42. Ng4 Rc7+ 43. Kb4 (43. Kd3 $17) 43... Nd4 44. Rd2 Kg5 45. Nf2 Rh7 (45... b6 $19 {has better winning chances.} 46. axb6 (46. Nxh3+ $2 Kg4 $17) 46... axb6) 46. b6 $17 axb6 47. axb6 d5 48. Rd3 {[#]} Rf7 (48... Rh8 $1 $17) 49. Rd2 $11 Rf8 50. Nxh3+ $2 {[%mdl 8192] Now White is beyond hope.} (50. exd5 $1 $11 {and White stays safe.} exd5 51. Nxh3+ Kg6 52. Nf2 (52. Nf4+ $2 exf4 53. gxf4 Rxf4 $19)) 50... Kg4 $19 51. Nf2+ Kf3 {Hoping for ...Ke3.} 52. Nd3 $2 (52. Nd1 Kxe4 53. h4) 52... Ke3 {Black is clearly winning.} (52... dxe4 $2 {is the wrong capture.} 53. Nxe5+ Ke3 54. Nc4+ Kf3 55. Rxd4 $18) ({Weaker is} 52... Kxe4 53. Rd1 $17) 53. Rd1 Ke2 (53... dxe4 54. Nxe5 Rd8 55. Re1+ Ne2 56. Rf1 $11) 54. Re1+ Kxd3 {Weighted Error Value: White=0.48/Black=0.13 (very precise) .  Loses game:     	White=1     	---        Mistake:       	White=6     	Black=5      Inaccurate:     	White=4     	Black=1      OK:         	White=12    	Black=19     Best:        	White=1     	Black=7} 0-1

[Event "Turkish Youth Teams U18 2024"]
[Site "Karaman"]
[Date "2024.04.23"]
[Round "6"]
[White "Orhon, Bora"]
[Black "Portakalci, Yusuf"]
[Result "1/2-1/2"]
[ECO "C02"]
[WhiteElo "1997"]
[BlackElo "2038"]
[Annotator "TA"]
[PlyCount "75"]
[EventDate "2024.04.21"]
[EventType "team-tourn"]
[EventCountry "TUR"]
[SourceTitle "playchess.com"]
[Source "ChessBase"]
[SourceQuality "1"]
[TimeControl "5400+30"]

{[%evp 12,75,0,-12,0,0,0,-32,-29,-34,-30,-31,-34,-35,-33,-24,-19,-45,0,-23,0,0,0,-14,5,-28,0,0,0,-47,-2,-51,-36,-56,-45,-63,-52,-63,-57,-62,-55,-93,-87,-176,-164,-239,-241,-242,-243,-238,-242,-247,-250,-256,-263,-230,-122,-383,-187,-639,-339,-559,-221,-556,-152,-174]} 1. e4 e6 2. d4 d5 3. e5 c5 4. c3 Nc6 5. Nf3 Qb6 6. Na3 cxd4 7. cxd4 Bb4+ 8. Bd2 Nge7 9. Nc2 Bxd2+ {Black is slightly better.} 10. Qxd2 Qxb2 11. Bd3 Qb6 12. O-O h6 {Against Qg5} 13. Rab1 $1 Qa5 14. Qe3 O-O 15. Nh4 Nf5 16. Nxf5 exf5 17. f4 Qd8 18. Rf3 b6 19. Qe2 Be6 20. Rh3 (20. Ba6 $11 {might be stronger.}) 20... Qd7 21. Bb5 (21. Ba6 $11) 21... Rfc8 $15 22. Rh5 Kh7 23. Qf2 g6 24. Rh3 Qe7 {Against Nb4} 25. Bd3 Rc7 26. Kh1 Rac8 27. a3 {Dodges Nb4} (27. Qe1 $17) 27... Na5 $19 28. g4 (28. Kg1 $142) 28... fxg4 29. Rg3 Bf5 30. Bxf5 gxf5 31. Ne3 Rc1+ (31... Qxa3 32. Nxg4 Rc1+ 33. Rxc1 (33. Kg2 R1c3 $11) 33... Qxc1+ 34. Rg1 fxg4 35. Rxc1 Rxc1+ 36. Kg2 $16) 32. Rxc1 Rxc1+ 33. Kg2 {[#]} Qc7 (33... Qxa3 $2 34. Nxg4 (34. Nxd5 $2 Qa4 $19) 34... Qf8 35. Nf6+ Kh8 36. Qe2 $18 (36. Nxd5 Qa8 $18)) ({Better is} 33... Nc4 $1 $19 {aiming for ...Qc7.} 34. Nxf5 Qe6) 34. h3 $2 {[%mdl 8192] White does not recover from this.} (34. Qd2 $17 Rc3 35. Qd1) 34... h5 (34... Nc4 $142 35. Nf1 (35. Nxd5 $2 {is the wrong capture.} Qc6 $19) (35. Nxf5 $2 {loses.} Nxe5 36. Ne3 gxh3+ 37. Kh2 Nd3 $19) 35... Nb2 36. hxg4 Rc2) 35. h4 $2 (35. hxg4 fxg4 36. Kh2) 35... Qc8 (35... Qd7 $2 36. Qd2 Qc8 37. Kh2 $19) 36. Kh2 $2 (36. Qb2 {was necessary.}) 36... Qe6 $2 (36... Nc4 {White must now prevent ...Nxe3.} 37. Ng2 Rd1) 37. Rg2 $2 {[#]} (37. Qb2 Rc8 38. Ng2) 37... Qh6 $2 (37... Nc4 $19 {and Black stays clearly on top.} 38. Rg3 Qc6 (38... Nxa3 39. Qb2 $11)) 38. Nxf5 {Weighted Error Value: White=0.69/Black=0.69.  Loses game:     	White=1     	---        Missed win:     	---       	Black=1      Mistake:       	White=7     	Black=2      Inaccurate:     	White=4     	Black=4      OK:         	White=7     	Black=9      Best:        	White=3     	Black=4      Strong:       	White=1     	---} 1/2-1/2

[Event "Turkish Youth Teams U18 2024"]
[Site "Karaman"]
[Date "2024.04.23"]
[Round "6"]
[White "Durucay, Uygar"]
[Black "Simsek, Ayaz"]
[Result "1-0"]
[ECO "D20"]
[WhiteElo "1995"]
[BlackElo "1867"]
[Annotator "TA"]
[PlyCount "97"]
[EventDate "2024.04.21"]
[EventType "team-tourn"]
[EventCountry "TUR"]
[SourceTitle "playchess.com"]
[Source "ChessBase"]
[SourceQuality "1"]
[TimeControl "5400+30"]

{[%evp 18,97,2,0,0,0,24,23,70,0,0,0,0,0,0,0,10,0,230,42,44,48,61,9,17,0,15,-31,15,12,156,140,134,68,55,62,62,53,58,0,32,-484,350,8,8,0,45,0,20,0,10,-46,45,-405,52,43,810,-299,8,-152,-25,-488,-35,-497,0,-52,513,-8,503,-35,-35,-48,402,-1025,-50,-54,-10,-452,3,-472,8,-492]} 1. d4 d5 2. c4 dxc4 3. e3 e5 4. Bxc4 exd4 5. exd4 Nf6 6. Nf3 Bd6 7. O-O O-O 8. h3 h6 9. Nc3 Nc6 10. a3 Bf5 11. b4 Ne4 12. Bb2 Qf6 (12... Nxc3 $11 13. Bxc3 Ne7) 13. b5 (13. Nd5 $14 Qd8 14. Ne3) 13... Ne7 14. Nxe4 Bxe4 15. Ne5 Qg5 {[%csl Ge4][%cal Rg5g2]} 16. g3 Bxe5 17. dxe5 Nf5 $2 (17... Rad8 $11 {and Black stays safe.} 18. Qg4 Bf5 19. Qxg5 hxg5) 18. Qg4 $2 (18. Qe1 $1 $18 {[%cal Re1e4]} Bf3 19. Qc3) 18... Qxg4 $14 19. hxg4 Ne7 20. Bc3 {Black is weak on the dark squares} ({White should play} 20. Rac1 $14) 20... Bf3 21. Rac1 Nd5 22. Bd2 (22. Rfe1 $11 {deserves consideration.}) 22... Nb6 (22... Rfd8 $15 {feels stronger.}) 23. Bb3 {This pair of bishops is nice.} Be2 (23... Rfd8 $11 {keeps the balance.} 24. Bb4 c6) 24. Rfe1 Bxb5 25. Rxc7 {White is much more active.} (25. e6 $16 Bc6 26. Bb4 (26. exf7+ Rxf7 27. Be6 Nd5 $18)) 25... Bc6 26. Bb4 Rac8 27. Rxc8 Rxc8 28. Bc5 (28. e6 $14 Nd5 29. Bc5) 28... Rd8 29. Be6 $2 {[%mdl 8192]} (29. e6 $14 {stays ahead.} fxe6 30. Rxe6 (30. Bxe6+ Kh8 $14)) 29... Kh8 $4 {[%mdl 8192]} (29... fxe6 $19 {and life is good for Black.} 30. Be3 Nc4) 30. Bf5 $2 (30. Bxf7 $18 {Strongly threatening e6.} Rc8 31. e6) 30... Rd5 $11 31. Bb4 Rd8 32. Bc3 Nd5 33. Bd4 a6 34. f4 (34. Bc5 $11) 34... Re8 {[#]} (34... Nxf4 $1 $15 35. Bb6 Nh3+ 36. Kh2 Ng5 37. Bxd8 Nf3+ 38. Kg2 Nxe1+ 39. Kf2 Nf3) 35. Bc3 $2 {[%mdl 8192] [#]} a5 $2 36. Bd4 Rxe5 $2 {[%mdl 8192]} 37. Bc3 $4 {[%mdl 8192]} (37. Rxe5 $18 {avoids the disaster.} f6 38. Re2) 37... Re8 $2 (37... Nxc3 38. Rxe5 (38. fxe5 Kg8 $18) 38... Kg8 39. Rxa5 $18) (37... Rxf5 $19 38. gxf5 (38. Bd4 $2 Rf6 $19) 38... Nxc3) 38. Be5 $2 ({Much worse is} 38. Bxa5 Ra8 39. Bb4 g6 $15) (38. Rxe8+ $11 Bxe8 39. Bxa5) 38... Re7 (38... f6 $1 $17 {[%cal Rf6e5]} 39. Bg6 fxe5 40. Bxe8 Bxe8 41. Rxe5 Bc6) 39. Bg6 $2 {[%mdl 8192]} Rd7 $2 (39... fxg6 $19 40. Bc3 Rxe1+ 41. Bxe1 a4) 40. Rd1 $2 {[%mdl 8192]} Re7 $2 ({Black should try} 40... fxg6 $19 41. g5 hxg5) 41. Bf5 {[#]} (41. Re1 $1 $11) 41... Rd7 $2 {[%mdl 8192]} 42. Kf2 $2 {[#]} ({White must play} 42. Bxd7 $18 Bxd7 43. Rxd5 Bxg4 44. Kf2 (44. Rxa5 Be2 $18)) 42... Kg8 $2 {[%mdl 8192]} 43. Rb1 $2 ({Only move:} 43. Bxd7 $18 Bxd7 44. Rxd5 Bxg4 45. Rxa5) 43... Re7 $15 44. Bc8 {[#]} Nc3 $2 {[%mdl 8192]} 45. Bd6 $4 {[%mdl 8192]} (45. Bxc3 $18 Re8 46. Bf5 (46. Bxb7 Rb8 $18)) 45... Nxb1 $2 ({Better is} 45... Re2+ $19 46. Kf1 Bg2+ 47. Kg1 Nxb1) 46. Bxe7 Kh8 47. Be6 $2 {[%mdl 8192]} Nc3 $2 {[#]} (47... fxe6 $19 48. Ke3 Nc3) 48. Ke3 $2 {[%mdl 8192]} a4 $2 {[#]} (48... fxe6 $19 49. Bd8 Ne4) 49. Bd8 $2 {[%mdl 40960] Weighted Error Value: White=1.63/Black=1.60.  Loses game:     	White=7     	Black=5      Missed win:     	White=6     	Black=8      Mistake:       	White=7     	Black=5      Inaccurate:     	White=1     	Black=2      OK:         	White=5     	Black=5      Best:        	White=1     	Black=2     . Loss on time!?} 1-0